[Event "11th Arad Open 2018"]
[Site "Arad"]
[Date "2018.08.06"]
[Round "3"]
[White "Zubcu, Vlad-George"]
[Black "Mircov, Nicola-Alexandar"]
[Result "1-0"]
[ECO "D32"]
[WhiteElo "2202"]
[BlackElo "1891"]
[Annotator "NA"]
[PlyCount "63"]
[EventDate "2018.08.05"]
[EventType "swiss"]
[EventCountry "ROU"]
[SourceTitle "playchess.com"]
[Source "ChessBase"]
[SourceQuality "1"]
[TimeControl "40/5400+30:1800+30"]

1. d4 {[%emt 0:00:00]} d5 {[%emt 0:13:44]} 2. c4 {[%emt 0:00:00]} e6 {[%emt 0:00:05]} 3. Nc3 {[%emt 0:00:02]} c5 {[%emt 0:00:07]} 4. cxd5 {[%emt 0:00:26]} cxd4 {[%emt 0:00:06]} 5. Qxd4 {[%emt 0:00:25]} Nc6 {[%emt 0:00:10]} 6. Qd1 {[%emt 0:03:24]} exd5 {[%emt 0:00:40]} 7. e3 {[%emt 0:02:53]} d4 {[%emt 0:01:37]} 8. exd4 {[%emt 0:00:20]} Qxd4 {[%emt 0:00:33]} 9. Be3 {[%emt 0:00:51]} Qb4 {[%emt 0:02:22]} 10. Nge2 {[%emt 0:22:34]} Bf5 {[%emt 0:06:37]} 11. a3 {[%emt 0:05:32]} Qe7 {[%emt 0:10:36]} 12. Qa4 {[%emt 0:22:21]} Nf6 {[%emt 0:05:35]} 13. Nd4 {[%emt 0:12:52]} Bd7 {[%emt 0:01:24]} 14. Ndb5 {[%emt 0:00:17]} Ne5 {[%emt 0:19:02]} 15. O-O-O {[%emt 0:04:57]} Bc6 {[%emt 0:04:12]} 16. Bf4 {[%emt 0:03:32]} g5 {[%emt 0:13:04]} 17. Bxe5 {[%emt 0:10:53]} Qxe5 {[%emt 0:00:15]} 18. Bc4 {[%emt 0:00:25]} Qf4+ {[%emt 0:05:49]} 19. Kb1 {[%emt 0:00:05]} Bc5 {[%emt 0:00:22]} 20. g3 {[%emt 0:04:24]} Qb8 {[%emt 0:03:28]} 21. Rhe1+ {[%emt 0:00:12]} Kf8 {[%emt 0:00:08]} 22. Qb3 {[%emt 0:00:39]} Kg7 {[%emt 0:02:50]} 23. Nd4 {[%emt 0:01:34]} Bxd4 {[%emt 0:00:55]} 24. Rxd4 {[%emt 0:00:04]} Qc7 {[%emt 0:00:48]} 25. h4 {[%emt 0:01:03]} h6 {[%emt 0:00:05]} 26. hxg5 {[%emt 0:00:51]} hxg5 {[%emt 0:00:06]} 27. Qc2 {[%emt 0:00:33]} Rhe8 {[%emt 0:02:30]} 28. Red1 {[%emt 0:01:23]} Bf3 {[%emt 0:01:59]} 29. Qf5 {[%emt 0:00:30]} Bxd1 {[%emt 0:00:08]} 30. Qxg5+ {[%emt 0:00:03]} Kf8 {[%emt 0:00:09]} 31. Qxf6 {[%emt 0:00:15]} Rad8 {[%emt 0:04:16]} 32. Rh4 {[%emt 0:00:31]} 1-0

[Event "11th Arad Open 2018"]
[Site "Arad"]
[Date "2018.08.06"]
[Round "3"]
[White "Chima, Radu-Niculin"]
[Black "Swayams, Mishra"]
[Result "0-1"]
[ECO "C12"]
[WhiteElo "2094"]
[BlackElo "2467"]
[Annotator "ChessBase"]
[PlyCount "64"]
[EventDate "2018.08.05"]
[EventType "swiss"]
[EventCountry "ROU"]
[SourceTitle "playchess.com"]
[Source "ChessBase"]
[SourceQuality "1"]
[TimeControl "40/5400+30:1800+30"]

1. e4 {[%emt 0:00:00]} e6 {[%emt 0:08:33]} 2. d4 {[%emt 0:00:37]} d5 {[%emt 0:00:53]} 3. Nc3 {[%emt 0:00:46]} Nf6 {[%emt 0:00:10]} 4. Bg5 {[%emt 0:00:40]} Bb4 {[%emt 0:00:07]} 5. e5 {[%emt 0:02:56]} h6 {[%emt 0:01:02]} 6. Bd2 {[%emt 0:01:18]} Bxc3 {[%emt 0:00:02]} 7. bxc3 {[%emt 0:01:35]} Ne4 {[%emt 0:00:01]} 8. Bd3 {[%emt 0:01:02]} Nxd2 {[%emt 0:00:16]} 9. Qxd2 {[%emt 0:00:29]} c5 {[%emt 0:00:14]} 10. Nf3 {[%emt 0:01:21]} c4 {[%emt 0:04:30]} 11. Be2 {[%emt 0:01:02]} Qa5 {[%emt 0:00:03]} 12. O-O {[%emt 0:00:50]} Qa3 {[%emt 0:01:46]} 13. Rfb1 {[%emt 0:02:27]} Nd7 {[%emt 0:00:49]} 14. Rb4 {[%emt 0:05:30]} Nb6 {[%emt 0:01:03]} 15. Qc1 {[%emt 0:04:55]} Qxc3 {[%emt 0:02:32]} 16. Rab1 {[%emt 0:05:46]} Bd7 {[%emt 0:00:22]} 17. Qb2 {[%emt 0:01:43]} Na4 {[%emt 0:01:31]} 18. Qxc3 {[%emt 0:11:27]} Nxc3 {[%emt 0:00:03]} 19. Re1 {[%emt 0:00:40]} b5 {[%emt 0:00:35]} 20. a3 {[%emt 0:04:23]} a5 {[%emt 0:00:30]} 21. Rb2 {[%emt 0:00:20]} b4 {[%emt 0:00:44]} 22. Kf1 {[%emt 0:18:12]} bxa3 {[%emt 0:00:06]} 23. Rb7 {[%emt 0:00:42]} a2 {[%emt 0:00:32]} 24. Ra1 {[%emt 0:00:52]} Ke7 {[%emt 0:00:07]} 25. Rb2 {[%emt 0:04:25]} Rhb8 {[%emt 0:00:07]} 26. Rbxa2 {[%emt 0:00:23]} Nxa2 {[%emt 0:00:02]} 27. Rxa2 {[%emt 0:00:12]} Rb1+ {[%emt 0:00:04]} 28. Ne1 {[%emt 0:00:10]} a4 {[%emt 0:00:03]} 29. Ra3 {[%emt 0:01:27]} Rab8 {[%emt 0:00:02]} 30. f4 {[%emt 0:00:27]} Rc1 {[%emt 0:00:09]} 31. Kf2 {[%emt 0:01:45]} Rbb1 {[%emt 0:00:02]} 32. Nf3 Rxc2 {[%emt 0:00:05]} 0-1

[Event "11th Arad Open 2018"]
[Site "Arad"]
[Date "2018.08.06"]
[Round "3"]
[White "Craciun, Alexandru-Emilian"]
[Black "Sanduleac, Vasile"]
[Result "0-1"]
[ECO "B06"]
[WhiteElo "2069"]
[BlackElo "2420"]
[Annotator "NA"]
[PlyCount "86"]
[EventDate "2018.08.05"]
[EventType "swiss"]
[EventCountry "ROU"]
[SourceTitle "playchess.com"]
[Source "ChessBase"]
[SourceQuality "1"]
[TimeControl "40/5400+30:1800+30"]

1. e4 {[%emt 0:00:00]} g6 {[%emt 0:00:00]} 2. d4 {[%emt 0:00:00]} Bg7 {[%emt 0:00:00]} 3. f4 {[%emt 0:00:00]} d5 {[%emt 0:00:30]} 4. e5 {[%emt 0:00:48]} Nh6 {[%emt 0:01:36]} 5. c3 {[%emt 0:01:33]} b6 {[%emt 0:04:10]} 6. Nd2 {[%emt 0:01:21]} O-O {[%emt 0:00:44]} 7. Ndf3 {[%emt 0:00:10]} Ba6 {[%emt 0:03:38]} 8. Bxa6 {[%emt 0:03:51]} Nxa6 {[%emt 0:03:27]} 9. Ne2 {[%emt 0:00:08]} c5 {[%emt 0:00:13]} 10. O-O {[%emt 0:00:37]} Qd7 {[%emt 0:00:52]} 11. Be3 {[%emt 0:05:02]} Rac8 {[%emt 0:00:55]} 12. h3 {[%emt 0:01:13]} f6 {[%emt 0:01:55]} 13. Qd2 {[%emt 0:02:30]} e6 {[%emt 0:04:01]} 14. g4 {[%emt 0:03:29]} cxd4 {[%emt 0:02:05]} 15. Bxd4 {[%emt 0:02:54]} f5 {[%emt 0:00:34]} 16. g5 {[%emt 0:01:52]} Nf7 {[%emt 0:00:04]} 17. h4 {[%emt 0:01:08]} Nc5 {[%emt 0:00:08]} 18. Bxc5 {[%emt 0:01:24]} bxc5 {[%emt 0:00:06]} 19. h5 {[%emt 0:00:34]} Rfd8 {[%emt 0:00:23]} 20. Kg2 {[%emt 0:03:42]} Qc6 {[%emt 0:03:51]} 21. Kg3 {[%emt 0:01:40]} gxh5 {[%emt 0:03:49]} 22. Rh1 {[%emt 0:02:47]} h6 {[%emt 0:00:58]} 23. Rxh5 {[%emt 0:04:06]} hxg5 {[%emt 0:01:05]} 24. Nxg5 {[%emt 0:00:48]} Nxg5 {[%emt 0:00:04]} 25. Rxg5 {[%emt 0:00:17]} Kf7 {[%emt 0:00:10]} 26. Rh1 {[%emt 0:15:24]} Rh8 {[%emt 0:00:25]} 27. Rgh5 {[%emt 0:00:50]} Rcg8 {[%emt 0:03:25]} 28. Kf2 {[%emt 0:02:35]} Rxh5 {[%emt 0:00:55]} 29. Rxh5 {[%emt 0:00:08]} Bf8 {[%emt 0:00:18]} 30. Rh7+ {[%emt 0:15:38]} Rg7 {[%emt 0:02:22]} 31. Rxg7+ {[%emt 0:01:04]} Bxg7 {[%emt 0:00:07]} 32. Ng1 {[%emt 0:00:47]} Bh6 {[%emt 0:01:19]} 33. Ne2 {[%emt 0:01:55]} Qa4 {[%emt 0:02:53]} 34. a3 {[%emt 0:00:55]} Bf8 {[%emt 0:00:21]} 35. Kg3 {[%emt 0:01:21]} Qe4 {[%emt 0:00:33]} 36. Ng1 {[%emt 0:01:26]} Bh6 {[%emt 0:00:31]} 37. Nf3 {[%emt 0:00:37]} c4 {[%emt 0:05:42]} 38. Nd4 {[%emt 0:05:54]} Qxe5 {[%emt 0:01:44]} 39. Nc6 {[%emt 0:18:23]} Qc7 {[%emt 0:00:39]} 40. Nd4 {[%emt 0:00:00]} e5 {[%emt 0:00:00]} 41. Ne2 {[%emt 0:15:49]} Bxf4+ {[%emt 0:16:58]} 42. Nxf4 {[%emt 0:00:02]} exf4+ {[%emt 0:00:08]} 43. Kf3 {[%emt 0:01:09]} Qe5 {[%emt 0:00:15] Ke4} 0-1

[Event "11th Arad Open 2018"]
[Site "Arad"]
[Date "2018.08.06"]
[Round "3"]
[White "Marin, Irina-Luiza"]
[Black "Bogdan, Dan"]
[Result "0-1"]
[ECO "A10"]
[WhiteElo "2056"]
[BlackElo "2382"]
[Annotator "NA"]
[PlyCount "78"]
[EventDate "2018.08.05"]
[EventType "swiss"]
[EventCountry "ROU"]
[SourceTitle "playchess.com"]
[Source "ChessBase"]
[SourceQuality "1"]
[TimeControl "40/5400+30:1800+30"]

1. c4 {[%emt 0:00:00]} d6 {[%emt 0:00:07]} 2. g3 {[%emt 0:00:00]} e5 {[%emt 0:00:52]} 3. Bg2 {[%emt 0:00:20]} Nc6 {[%emt 0:01:05]} 4. Nc3 {[%emt 0:03:05]} g6 {[%emt 0:01:23]} 5. e4 {[%emt 0:00:31]} Bg7 {[%emt 0:04:22]} 6. Nge2 {[%emt 0:00:25]} Be6 {[%emt 0:01:32]} 7. d3 {[%emt 0:01:41]} Nge7 {[%emt 0:04:38]} 8. O-O {[%emt 0:01:06]} O-O {[%emt 0:00:51]} 9. Nd5 {[%emt 0:07:59]} Qd7 {[%emt 0:06:44]} 10. Be3 {[%emt 0:04:29]} f5 {[%emt 0:03:22]} 11. Qd2 {[%emt 0:02:32]} Rf7 {[%emt 0:03:15]} 12. Rae1 {[%emt 0:15:36]} Raf8 {[%emt 0:03:05]} 13. b4 {[%emt 0:13:20]} a6 {[%emt 0:04:23]} 14. a4 {[%emt 0:07:21]} Nd8 {[%emt 0:02:17]} 15. b5 {[%emt 0:04:28]} axb5 {[%emt 0:04:16]} 16. axb5 {[%emt 0:00:12]} Nc8 {[%emt 0:00:27]} 17. Bh6 {[%emt 0:03:55]} Bxh6 {[%emt 0:04:08]} 18. Qxh6 {[%emt 0:00:13]} c6 {[%emt 0:00:05]} 19. bxc6 {[%emt 0:14:12]} bxc6 {[%emt 0:02:28]} 20. Ndc3 {[%emt 0:00:21]} f4 {[%emt 0:11:28]} 21. gxf4 {[%emt 0:04:43]} exf4 {[%emt 0:02:40]} 22. f3 {[%emt 0:00:15]} Rg7 {[%emt 0:01:44]} 23. Nxf4 {[%emt 0:02:54]} Nf7 {[%emt 0:02:39]} 24. Qh4 {[%emt 0:04:00]} g5 {[%emt 0:01:45]} 25. Qg3 {[%emt 0:00:48]} gxf4 {[%emt 0:00:20]} 26. Qxf4 {[%emt 0:00:12]} Ng5 {[%emt 0:02:59]} 27. Qe3 {[%emt 0:00:33]} Nh3+ {[%emt 0:00:17]} 28. Kh1 {[%emt 0:00:19]} Nf4 {[%emt 0:00:39]} 29. Rg1 {[%emt 0:01:51]} Ne7 {[%emt 0:03:05]} 30. Ne2 {[%emt 0:01:05]} Nxe2 {[%emt 0:00:48]} 31. Qxe2 {[%emt 0:00:46]} Ng6 {[%emt 0:00:22]} 32. d4 {[%emt 0:01:00]} Nf4 {[%emt 0:02:42]} 33. Qc2 {[%emt 0:00:15]} Qf7 {[%emt 0:05:11]} 34. d5 {[%emt 0:00:33]} Nxg2 {[%emt 0:01:57]} 35. dxe6 {[%emt 0:01:57]} Qxf3 {[%emt 0:00:37]} 36. Qxg2 {[%emt 0:01:41]} Rxg2 {[%emt 0:00:45]} 37. Rxg2+ {[%emt 0:00:05]} Kh8 {[%emt 0:00:08]} 38. Kg1 {[%emt 0:01:08]} Qf6 {[%emt 0:00:31]} 39. e5 {[%emt 0:01:31]} dxe5 {[%emt 0:00:19]} 0-1

[Event "11th Arad Open 2018"]
[Site "Arad"]
[Date "2018.08.06"]
[Round "3"]
[White "Coca, Cristi-Iulian"]
[Black "Yordanov, Lachezar"]
[Result "0-1"]
[ECO "B15"]
[WhiteElo "2024"]
[BlackElo "2314"]
[Annotator "NA"]
[PlyCount "114"]
[EventDate "2018.08.05"]
[EventType "swiss"]
[EventCountry "ROU"]
[SourceTitle "playchess.com"]
[Source "ChessBase"]
[SourceQuality "1"]
[TimeControl "40/5400+30:1800+30"]

1. e4 {[%emt 0:00:00]} c6 {[%emt 0:00:00]} 2. d4 {[%emt 0:00:00]} d5 {[%emt 0:00:00]} 3. Nc3 {[%emt 0:00:00]} b5 {[%emt 0:00:00]} 4. a3 {[%emt 0:05:13]} dxe4 {[%emt 0:00:00]} 5. Nxe4 {[%emt 0:00:06]} Bf5 {[%emt 0:00:06]} 6. Ng3 {[%emt 0:00:15]} Bg6 {[%emt 0:00:13]} 7. N1e2 {[%emt 0:00:53]} e6 {[%emt 0:00:07]} 8. Nf4 {[%emt 0:01:34]} Bd6 {[%emt 0:00:14]} 9. Nfh5 {[%emt 0:04:46]} Bxg3 {[%emt 0:02:37]} 10. hxg3 {[%emt 0:01:45]} Bxh5 {[%emt 0:03:06]} 11. Rxh5 {[%emt 0:00:38]} Nf6 {[%emt 0:00:28]} 12. Rh4 {[%emt 0:00:59]} Nbd7 {[%emt 0:00:18]} 13. Bd3 {[%emt 0:02:16]} Nb6 {[%emt 0:00:47]} 14. Qf3 {[%emt 0:02:10]} Qd5 {[%emt 0:01:37]} 15. Qxd5 {[%emt 0:03:45]} Nbxd5 {[%emt 0:00:09]} 16. Bd2 {[%emt 0:01:09]} h6 {[%emt 0:00:17]} 17. f3 {[%emt 0:01:24]} Kd7 {[%emt 0:00:40]} 18. Kf2 {[%emt 0:00:52]} a5 {[%emt 0:00:06]} 19. Rhh1 {[%emt 0:04:04]} Rhb8 {[%emt 0:01:36]} 20. b3 {[%emt 0:04:36]} b4 {[%emt 0:00:52]} 21. a4 {[%emt 0:01:04]} Rc8 {[%emt 0:00:36]} 22. Rad1 {[%emt 0:01:49]} Ke7 {[%emt 0:01:53]} 23. f4 {[%emt 0:03:27]} g6 {[%emt 0:01:26]} 24. Kf3 {[%emt 0:02:37]} h5 {[%emt 0:00:28]} 25. Rhe1 {[%emt 0:00:22]} Kf8 {[%emt 0:01:04]} 26. Bc1 {[%emt 0:05:52]} Rc7 {[%emt 0:02:15]} 27. Bb2 {[%emt 0:01:27]} Kg7 {[%emt 0:01:10]} 28. Rd2 {[%emt 0:03:08]} Rd8 {[%emt 0:00:19]} 29. Rdd1 {[%emt 0:02:13]} Rcd7 {[%emt 0:00:16]} 30. Bf1 {[%emt 0:03:07]} Ng4 {[%emt 0:01:36]} 31. Bc4 {[%emt 0:01:14]} Kg8 {[%emt 0:01:05]} 32. Bd3 {[%emt 0:01:51]} Kf8 {[%emt 0:06:25]} 33. Bc4 {[%emt 0:02:19]} Nh6 {[%emt 0:02:33]} 34. Bf1 {[%emt 0:03:44]} Nf5 {[%emt 0:01:44]} 35. Bd3 {[%emt 0:04:39]} Nde7 {[%emt 0:00:11]} 36. Bxf5 {[%emt 0:01:40]} Nxf5 {[%emt 0:00:06]} 37. Re5 {[%emt 0:00:16]} Rd5 {[%emt 0:00:45]} 38. Rd3 {[%emt 0:14:59]} Ke7 {[%emt 0:01:37]} 39. Rxd5 {[%emt 0:02:11]} Rxd5 {[%emt 0:00:11]} 40. Kf2 {[%emt 0:00:00]} Kd7 {[%emt 0:00:00]} 41. Kf3 {[%emt 0:18:24]} Kc7 {[%emt 0:16:26]} 42. Ke4 {[%emt 0:03:13]} Nd6+ {[%emt 0:00:13]} 43. Kf3 {[%emt 0:00:30]} f5 {[%emt 0:00:28]} 44. Bc1 {[%emt 0:04:21]} Ne4 {[%emt 0:02:20]} 45. Be3 {[%emt 0:00:32]} Rd7 {[%emt 0:00:34]} 46. Bf2 {[%emt 0:01:31]} Kd8 {[%emt 0:01:52]} 47. Bg1 {[%emt 0:01:10]} Ke7 {[%emt 0:00:11]} 48. d5 {[%emt 0:02:37]} exd5 {[%emt 0:00:26]} 49. Bb6 {[%emt 0:00:18]} Kd6 {[%emt 0:06:24]} 50. Bxa5 {[%emt 0:01:07]} c5 {[%emt 0:00:07]} 51. Bb6 {[%emt 0:00:37]} Kc6 {[%emt 0:00:02]} 52. a5 {[%emt 0:01:09]} Re7 {[%emt 0:00:50]} 53. Rd1 {[%emt 0:01:17]} Re8 {[%emt 0:00:22]} 54. Rd3 {[%emt 0:01:25]} d4 {[%emt 0:01:06]} 55. Rd1 {[%emt 0:00:06]} Nf6 {[%emt 0:00:10]} 56. Ba7 {[%emt 0:01:12]} Re3+ {[%emt 0:01:18]} 57. Kf2 {[%emt 0:00:10]} Rc3 {[%emt 0:00:08]} 0-1

[Event "11th Arad Open 2018"]
[Site "Arad"]
[Date "2018.08.06"]
[Round "3"]
[White "Carasca, Bogdan-Petru"]
[Black "Tiba, Vladyslav"]
[Result "1-0"]
[ECO "A50"]
[WhiteElo "1993"]
[BlackElo "2356"]
[Annotator "NA"]
[PlyCount "120"]
[EventDate "2018.08.05"]
[EventType "swiss"]
[EventCountry "ROU"]
[SourceTitle "playchess.com"]
[Source "ChessBase"]
[SourceQuality "1"]
[TimeControl "40/5400+30:1800+30"]

1. d4 {[%emt 0:00:00]} Nf6 {[%emt 0:00:06]} 2. c4 {[%emt 0:00:00]} g6 {[%emt 0:00:12]} 3. f3 {[%emt 0:00:08]} Bg7 {[%emt 0:00:24]} 4. e4 {[%emt 0:00:10]} d6 {[%emt 0:00:10]} 5. Be3 {[%emt 0:00:12]} O-O {[%emt 0:00:16]} 6. Nc3 {[%emt 0:00:09]} c6 {[%emt 0:00:21]} 7. Nge2 {[%emt 0:00:33]} Nbd7 {[%emt 0:00:41]} 8. Qd2 {[%emt 0:00:51]} a6 {[%emt 0:00:18]} 9. c5 {[%emt 0:02:15]} dxc5 {[%emt 0:03:29]} 10. dxc5 {[%emt 0:00:12]} Qa5 {[%emt 0:00:18]} 11. a3 {[%emt 0:01:27]} Ne5 {[%emt 0:00:28]} 12. b4 {[%emt 0:01:50]} Qc7 {[%emt 0:00:11]} 13. Nd4 {[%emt 0:01:09]} Rd8 {[%emt 0:00:10]} 14. Qb2 {[%emt 0:03:03]} Nfg4 {[%emt 0:22:07]} 15. Bg1 {[%emt 0:01:30]} Nf6 {[%emt 0:10:12]} 16. Rd1 {[%emt 0:01:28]} Nh5 {[%emt 0:01:15]} 17. Be3 {[%emt 0:02:03]} Nd7 {[%emt 0:03:04]} 18. Bc4 {[%emt 0:02:34]} Nf8 {[%emt 0:02:03]} 19. Qa2 {[%emt 0:05:25]} e5 {[%emt 0:01:01]} 20. Nde2 {[%emt 0:00:59]} Be6 {[%emt 0:00:22]} 21. O-O {[%emt 0:00:33]} Qe7 {[%emt 0:03:48]} 22. Na4 {[%emt 0:02:02]} Bxc4 {[%emt 0:01:29]} 23. Qxc4 {[%emt 0:00:09]} Ne6 {[%emt 0:00:12]} 24. Nb6 {[%emt 0:00:44]} Rxd1 {[%emt 0:01:34]} 25. Rxd1 {[%emt 0:00:29]} Rd8 {[%emt 0:00:06]} 26. Qc1 {[%emt 0:01:28]} Nhf4 {[%emt 0:16:46]} 27. Bxf4 {[%emt 0:02:35]} exf4 {[%emt 0:01:03]} 28. Nc4 {[%emt 0:01:37]} Rxd1+ {[%emt 0:04:43]} 29. Qxd1 {[%emt 0:00:08]} Nxc5 {[%emt 0:00:57]} 30. Nxf4 {[%emt 0:01:50]} Nd7 {[%emt 0:03:27]} 31. Nd3 {[%emt 0:03:52]} c5 {[%emt 0:04:11]} 32. Kh1 {[%emt 0:02:29]} b5 {[%emt 0:06:13]} 33. Ne3 {[%emt 0:00:15]} Bd4 {[%emt 0:01:06]} 34. Nd5 {[%emt 0:00:37]} Qd6 {[%emt 0:00:48]} 35. bxc5 {[%emt 0:01:44]} Nxc5 {[%emt 0:00:41]} 36. N3b4 {[%emt 0:01:47]} Bg7 {[%emt 0:06:40]} 37. Nc6 {[%emt 0:03:25]} Kh8 {[%emt 0:00:31]} 38. Nce7 {[%emt 0:03:00]} Ne6 {[%emt 0:03:03]} 39. Qc1 {[%emt 0:03:06]} Qc5 {[%emt 0:00:55]} 40. Qxc5 {[%emt 0:00:00]} Nxc5 {[%emt 0:00:00]} 41. Nb4 {[%emt 0:02:36]} Bb2 {[%emt 0:10:34]} 42. Nc2 {[%emt 0:00:19]} Nb3 {[%emt 0:01:43]} 43. Nc6 {[%emt 0:01:32]} Kg7 {[%emt 0:10:38]} 44. N6b4 {[%emt 0:01:21]} a5 {[%emt 0:01:10]} 45. Nc6 {[%emt 0:00:39]} Kf6 {[%emt 0:00:28]} 46. Na7 {[%emt 0:00:15]} b4 {[%emt 0:07:47]} 47. axb4 {[%emt 0:00:56]} a4 {[%emt 0:00:25]} 48. b5 {[%emt 0:00:49]} a3 {[%emt 0:00:52]} 49. b6 {[%emt 0:01:36]} Nc5 {[%emt 0:00:52]} 50. Nb4 {[%emt 0:01:15]} Ke6 {[%emt 0:00:20]} 51. Nac6 {[%emt 0:01:50]} Kd7 {[%emt 0:00:55]} 52. Na7 {[%emt 0:02:03]} Nd3 {[%emt 0:01:13]} 53. Nxd3 {[%emt 0:00:45]} a2 {[%emt 0:01:11]} 54. Nc5+ Kd6 55. Nb3 {[%emt 0:01:24]} a1=Q+ {[%emt 0:00:48]} 56. Nxa1 {[%emt 0:00:07]} Bxa1 {[%emt 0:00:03]} 57. b7 {[%emt 0:01:09]} Kc7 {[%emt 0:00:16]} 58. Nc6 {[%emt 0:00:05]} Kxb7 {[%emt 0:00:03]} 59. Nd8+ {[%emt 0:00:05]} Kc7 {[%emt 0:00:23]} 60. Nxf7 {[%emt 0:00:10]} Kd7 {[%emt 0:00:27]} 1-0

[Event "11th Arad Open 2018"]
[Site "Arad"]
[Date "2018.08.06"]
[Round "3"]
[White "Craciun, Ovidiu"]
[Black "Gheorghiu, Calin"]
[Result "0-1"]
[ECO "C11"]
[WhiteElo "1947"]
[BlackElo "2292"]
[Annotator "NA"]
[PlyCount "36"]
[EventDate "2018.08.05"]
[EventType "swiss"]
[EventCountry "ROU"]
[SourceTitle "playchess.com"]
[Source "ChessBase"]
[SourceQuality "1"]
[TimeControl "40/5400+30:1800+30"]

1. e4 {[%emt 0:00:00]} e6 {[%emt 0:01:12]} 2. d4 {[%emt 0:00:00]} d5 {[%emt 0:00:03]} 3. Nc3 {[%emt 0:00:00]} Nf6 {[%emt 0:00:04]} 4. e5 {[%emt 0:00:00]} Nfd7 {[%emt 0:00:02]} 5. f4 {[%emt 0:04:31]} c5 {[%emt 0:00:10]} 6. Nf3 {[%emt 0:00:11]} Be7 {[%emt 0:00:07]} 7. Ne2 {[%emt 0:06:47]} Nc6 {[%emt 0:06:01]} 8. c3 {[%emt 0:00:14]} Qb6 {[%emt 0:00:13]} 9. g3 {[%emt 0:10:37]} f6 {[%emt 0:05:53]} 10. Bh3 {[%emt 0:09:37]} cxd4 {[%emt 0:14:02]} 11. Nfxd4 {[%emt 0:07:08]} Nc5 {[%emt 0:03:05]} 12. Nxc6 {[%emt 0:12:02]} bxc6 {[%emt 0:00:50]} 13. Nd4 {[%emt 0:03:20]} fxe5 {[%emt 0:03:33]} 14. fxe5 {[%emt 0:01:47]} O-O {[%emt 0:00:25]} 15. b4 {[%emt 0:05:29]} Ne4 {[%emt 0:01:06]} 16. Be3 {[%emt 0:06:14]} Bxb4 {[%emt 0:01:18]} 17. Bd2 {[%emt 0:08:49]} Nxc3 {[%emt 0:00:55]} 18. Qg4 {[%emt 0:04:16]} Ne4 {[%emt 0:02:28]} 0-1

[Event "11th Arad Open 2018"]
[Site "Arad"]
[Date "2018.08.06"]
[Round "3"]
[White "Fugulyan, Grigore"]
[Black "Ghimpu, Samuel-Timotei"]
[Result "0-1"]
[ECO "E32"]
[WhiteElo "1835"]
[BlackElo "2184"]
[Annotator "NA"]
[PlyCount "52"]
[EventDate "2018.08.05"]
[EventType "swiss"]
[EventCountry "ROU"]
[SourceTitle "playchess.com"]
[Source "ChessBase"]
[SourceQuality "1"]
[TimeControl "40/5400+30:1800+30"]

1. d4 {[%emt 0:00:00]} e6 {[%emt 0:00:06]} 2. c4 {[%emt 0:00:00]} Nf6 {[%emt 0:01:20]} 3. Nc3 {[%emt 0:00:11]} Bb4 {[%emt 0:00:06]} 4. Qc2 {[%emt 0:00:15]} b6 {[%emt 0:00:10]} 5. e4 {[%emt 0:02:14]} Bb7 {[%emt 0:03:57]} 6. f3 {[%emt 0:04:14]} c5 {[%emt 0:04:50]} 7. a3 {[%emt 0:03:16]} cxd4 {[%emt 0:09:19]} 8. axb4 {[%emt 0:00:16]} dxc3 {[%emt 0:00:05]} 9. bxc3 {[%emt 0:00:28]} O-O {[%emt 0:03:32]} 10. e5 {[%emt 0:03:55]} Ne8 {[%emt 0:00:40]} 11. Bd3 {[%emt 0:13:05]} Qh4+ {[%emt 0:06:09]} 12. g3 {[%emt 0:02:33]} Qh5 {[%emt 0:00:27]} 13. Bf4 {[%emt 0:03:23]} Nc6 {[%emt 0:06:35]} 14. Be4 {[%emt 0:00:55]} f5 {[%emt 0:00:42]} 15. exf6 {[%emt 0:01:06]} Nxf6 {[%emt 0:00:07]} 16. b5 {[%emt 0:04:21]} Na5 {[%emt 0:00:42]} 17. Bxb7 {[%emt 0:00:40]} Nxb7 {[%emt 0:00:11]} 18. Qd3 {[%emt 0:11:17]} Nc5 {[%emt 0:04:51]} 19. Qd6 {[%emt 0:01:08]} Qf5 {[%emt 0:02:22]} 20. Rd1 {[%emt 0:02:20]} Rac8 {[%emt 0:06:40]} 21. Ne2 {[%emt 0:01:14]} g5 {[%emt 0:07:28]} 22. Nd4 {[%emt 0:04:34]} Qg6 {[%emt 0:00:49]} 23. Be3 {[%emt 0:01:43]} Nfe4 {[%emt 0:02:15]} 24. fxe4 {[%emt 0:01:20]} Qxe4 {[%emt 0:00:08]} 25. Ke2 {[%emt 0:00:19]} Qg2+ {[%emt 0:00:11]} 26. Ke1 {[%emt 0:00:51]} Qxh1+ {[%emt 0:00:13]} 0-1